Body,Body Name,Date,TransNo,Amount � (Excl VAT),Supplier name,Description,Expense Area,Expense Type,Expense Code,
http://opendatacommunities.org/id/london-borough-council/sutton,London Borough of Sutton,23/07/2019,1279574,26.82 , AMZNMKTPLACE,TOYS & EQUIPMENT,Peoples Services Directorate,Education Equipment,F009,
http://opendatacommunities.org/id/london-borough-council/sutton,London Borough of Sutton,17/07/2019,1279574,14.16 , AMAZON.CO.UK MH2HU5LY4,TOYS & EQUIPMENT,Peoples Services Directorate,Education Equipment,F009,
http://opendatacommunities.org/id/london-borough-council/sutton,London Borough of Sutton,11/07/2019,1279574,81.94 , WWW.ARGOS.CO.UK,TOYS & EQUIPMENT,Peoples Services Directorate,Education Equipment,F009,
http://opendatacommunities.org/id/london-borough-council/sutton,London Borough of Sutton,23/07/2019,1279574,88.44 , ASDA SUPERSTORE,GROCERY SHOP,Peoples Services Directorate,Provisions - General,F150,
http://opendatacommunities.org/id/london-borough-council/sutton,London Borough of Sutton,16/07/2019,1279574,10.42 , ASDA SUPERSTORE,GROCERY SHOP,Peoples Services Directorate,Provisions - General,F150,
http://opendatacommunities.org/id/london-borough-council/sutton,London Borough of Sutton,08/07/2019,1279574,31.32 , ASDA SUPERSTORE,GROCERY SHOP,Peoples Services Directorate,Provisions - General,F150,
http://opendatacommunities.org/id/london-borough-council/sutton,London Borough of Sutton,01/07/2019,1279574,64.39 , W M MORRISONS.COM,GROCERY SHOP,Peoples Services Directorate,Provisions - General,F150,
http://opendatacommunities.org/id/london-borough-council/sutton,London Borough of Sutton,16/07/2019,1279574,62.76 , W M MORRISONS.COM,GROCERY SHOP,Peoples Services Directorate,Refreshments,F155,
http://opendatacommunities.org/id/london-borough-council/sutton,London Borough of Sutton,01/07/2019,1279574,69.14 , W M MORRISONS.COM,GROCERY SHOP,Peoples Services Directorate,Refreshments,F155,
http://opendatacommunities.org/id/london-borough-council/sutton,London Borough of Sutton,03/07/2019,1279574,42.07 , AMZNMKTPLACE,OYSTER TOPUP 071306885564,Peoples Services Directorate,Staff Travelling Expenses,E130,
http://opendatacommunities.org/id/london-borough-council/sutton,London Borough of Sutton,28/06/2019,1279574,87.47 , WWW.POSTOFFICESHOP.CO.,"C4 BOARD BACKED PEEL AND SEAL ENVELOPES 115GSM, PACK OF 125",Peoples Services Directorate,Stationery,F220,
http://opendatacommunities.org/id/london-borough-council/sutton,London Borough of Sutton,28/06/2019,1279574,25.98 , WWW.POSTOFFICESHOP.CO.,"MANILLA C5 SELF SEAL ENVELOPES 130GSM, PACK OF 250",Peoples Services Directorate,Stationery,F220,
http://opendatacommunities.org/id/london-borough-council/sutton,London Borough of Sutton,30/06/2019,1279574,9.56 , AMZNMKTPLACE AMAZON.CO,USB CHARGED FOR SONY DCR-DVD,Peoples Services Directorate,Purchase of IT Equipment,F380,
http://opendatacommunities.org/id/london-borough-council/sutton,London Borough of Sutton,10/07/2019,1279574,186.41 , BIGARTANDBANNERS,MESH & CORREX BANNERS FOR PUBLICITY 19/20,Peoples Services Directorate,Advertising/Publicity (non Staff),F240,
http://opendatacommunities.org/id/london-borough-council/sutton,London Borough of Sutton,27/06/2019,1279574,(55.82), WWW.INSTANTPRINT.C,REFUND FROM INSTANTPRINT FOR PURCHASE DELIVERED INCORRECTLY,Peoples Services Directorate,Advertising/Publicity (non Staff),F240,
http://opendatacommunities.org/id/london-borough-council/sutton,London Borough of Sutton,26/06/2019,1279574,19.85 , SAINSBURYS 2331,SUTTON COLLEGE AWARDS EVENING 2019 REFRESHMENTS,Peoples Services Directorate,Advertising/Publicity (non Staff),F240,
http://opendatacommunities.org/id/london-borough-council/sutton,London Borough of Sutton,26/06/2019,1279574,35.78 , WM MORRISONS STORE,SUTTON COLLEGE AWARDS EVENING 2019 REFRESHMENTS,Peoples Services Directorate,Advertising/Publicity (non Staff),F240,
http://opendatacommunities.org/id/london-borough-council/sutton,London Borough of Sutton,30/06/2019,1279574,39.80 , MAILCHIMP    MONTHLY,MAILCHIMP MONTHLY PAYMENT,Peoples Services Directorate,Subscriptions - General,F450,
http://opendatacommunities.org/id/london-borough-council/sutton,London Borough of Sutton,23/07/2019,1279574,333.27 , WWW.TOOLSTATION.COM,DOORGUARD FIRE DOOR RETAINER,Peoples Services Directorate,Health and Safety Equipment,F005,
http://opendatacommunities.org/id/london-borough-council/sutton,London Borough of Sutton,08/07/2019,1279574,333.27 , WWW.TOOLSTATION.COM,DORGARD FIRE DOOR RETAINER,Peoples Services Directorate,Health and Safety Equipment,F005,
http://opendatacommunities.org/id/london-borough-council/sutton,London Borough of Sutton,07/07/2019,1279574,40.00 , OYSTER AUTO-TOP UP,WALL MOUNTED AUTOMATIC LIQUID SOAP DISPENSER,Peoples Services Directorate,Other Equipment - Purchase,F015,
http://opendatacommunities.org/id/london-borough-council/sutton,London Borough of Sutton,12/07/2019,1279574,26.66 , www.instantprint.c,visitor badges -instant print lss,Peoples Services Directorate,Stationery,F220,
http://opendatacommunities.org/id/london-borough-council/sutton,London Borough of Sutton,12/07/2019,1279574,10.00 , O2 PREPAY TOP-UP,OFFICE MOBILE TOP UP,Peoples Services Directorate,Other Services,F340,
http://opendatacommunities.org/id/london-borough-council/sutton,London Borough of Sutton,27/06/2019,1279574,15.00 , MELBOURNE NURSERY,FOUNDATION IN FLORISTRY - FLOWERS FOLIAGE AND PLASTIC CONTAINER,Peoples Services Directorate,Education Equipment,F009,
http://opendatacommunities.org/id/london-borough-council/sutton,London Borough of Sutton,18/07/2019,1279574,20.00 , OYSTER AUTO-TOP UP,20.00 AUTO TOP UP - A530 0301 999,Peoples Services Directorate,Travelling and Subsistence Allowances,A530,
http://opendatacommunities.org/id/london-borough-council/sutton,London Borough of Sutton,08/07/2019,1279574,20.00 , OYSTER AUTO-TOP UP,20.00 - A530 9999 - OYSTER TOP UP,Peoples Services Directorate,Travelling and Subsistence Allowances,A530,
http://opendatacommunities.org/id/london-borough-council/sutton,London Borough of Sutton,08/07/2019,1279574,20.00 , OYSTER AUTO-TOP UP,20.00 - A530 0301 9999 - OYSTER TOP UP,Peoples Services Directorate,Travelling and Subsistence Allowances,A530,
http://opendatacommunities.org/id/london-borough-council/sutton,London Borough of Sutton,03/07/2019,1279574,20.00 , OYSTER AUTO-TOP UP,20.00 - A530 0304 9999 - OYSTER TOP UP,Peoples Services Directorate,Travelling and Subsistence Allowances,A530,
http://opendatacommunities.org/id/london-borough-council/sutton,London Borough of Sutton,02/07/2019,1279574,20.00 , OYSTER AUTO-TOP UP,20.00 - A530 0304 9999 - OYSTER,Peoples Services Directorate,Travelling and Subsistence Allowances,A530,
http://opendatacommunities.org/id/london-borough-council/sutton,London Borough of Sutton,12/07/2019,1279574,6.95 , CAFFE NERO SUTTON CARS,JM ACTIVITY,Peoples Services Directorate,Personal Requisites,F106,
http://opendatacommunities.org/id/london-borough-council/sutton,London Borough of Sutton,10/07/2019,1279574,25.00 , POST OFFICE COUNTER,AB BDAY,Peoples Services Directorate,Personal Requisites,F106,
http://opendatacommunities.org/id/london-borough-council/sutton,London Borough of Sutton,06/07/2019,1279574,31.00 , SAINSBURYS 2006,KB BDAY,Peoples Services Directorate,Personal Requisites,F106,
http://opendatacommunities.org/id/london-borough-council/sutton,London Borough of Sutton,05/07/2019,1279574,16.69 , LIDL GB LONDON,JC FOOD,Peoples Services Directorate,Personal Requisites,F106,
http://opendatacommunities.org/id/london-borough-council/sutton,London Borough of Sutton,04/07/2019,1279574,5.33 , WASABI VICTORIA STATIO,MA ACTIVITY,Peoples Services Directorate,Personal Requisites,F106,
http://opendatacommunities.org/id/london-borough-council/sutton,London Borough of Sutton,26/06/2019,1279574,3.24 , MCDONALDS,KP ACTIVITY,Peoples Services Directorate,Personal Requisites,F106,
http://opendatacommunities.org/id/london-borough-council/sutton,London Borough of Sutton,10/07/2019,1279574,(35.50), WWW.CENTRALBEDFORDSHIR,35.50 - REFUND BEDFORDSHIRE BIRTH CERTIFICATES .PNG,Peoples Services Directorate,Personal Requisites,F106,
http://opendatacommunities.org/id/london-borough-council/sutton,London Borough of Sutton,09/07/2019,1279574,35.50 , WWW.CENTRALBEDFORDSHIR,35.50 - F106 0304 9999 - BEDFORDSHIRE BIRTH CERTIFICATE .PNG,Peoples Services Directorate,Personal Requisites,F106,
http://opendatacommunities.org/id/london-borough-council/sutton,London Borough of Sutton,16/07/2019,1279574,(105.00), CASHIERS TOWN HALL,105.00 - F106 0304 9999 - LUTON BIRTH CERT,Peoples Services Directorate,Personal Requisites,F106,
http://opendatacommunities.org/id/london-borough-council/sutton,London Borough of Sutton,15/07/2019,1279574,105.00 , LUTON BC INTERNET,105.00 - F106 0304 9999,Peoples Services Directorate,Personal Requisites,F106,
http://opendatacommunities.org/id/london-borough-council/sutton,London Borough of Sutton,15/07/2019,1279574,153.89 , WWW.ARGOS.CO.UK,153.89 - F150 0304 9999,Peoples Services Directorate,Provisions - General,F150,
http://opendatacommunities.org/id/london-borough-council/sutton,London Borough of Sutton,15/07/2019,1279574,32.49 , WWW.BIBLESOCIETY.ORG.U,32.49 - F150 0304 9999 - BIBLE IN TIGRYNIA .,Peoples Services Directorate,Provisions - General,F150,
http://opendatacommunities.org/id/london-borough-council/sutton,London Borough of Sutton,19/07/2019,1279574,(83.50), HOTEL ON BOOKING.COM C,83.50 - REFUND - H211 0304 9999 - BOOKING FOR LC,Peoples Services Directorate,C.C.A Rent & Utilities,H211,
http://opendatacommunities.org/id/london-borough-council/sutton,London Borough of Sutton,18/07/2019,1279574,83.50 , HOTEL ON BOOKING.COM C,83.50 - REFUND - H211 0304 9999 - BOOKING FOR LCT,Peoples Services Directorate,C.C.A Rent & Utilities,H211,
http://opendatacommunities.org/id/london-borough-council/sutton,London Borough of Sutton,02/07/2019,1279574,45.00 , ARGOS RETAIL GROUP,TG SET UP,Peoples Services Directorate,Set Up Costs - Children Leaving Care,H336,
http://opendatacommunities.org/id/london-borough-council/sutton,London Borough of Sutton,02/07/2019,1279574,304.19 , WWW.ARGOS.CO.UK,TG SET UP,Peoples Services Directorate,Set Up Costs - Children Leaving Care,H336,
http://opendatacommunities.org/id/london-borough-council/sutton,London Borough of Sutton,26/06/2019,1279574,95.02 , LBSUTTON,SG SETTING UP,Peoples Services Directorate,Set Up Costs - Children Leaving Care,H336,
http://opendatacommunities.org/id/london-borough-council/sutton,London Borough of Sutton,15/07/2019,1279574,537.47 , WWW.ARGOS.CO.UK,CLIENT HOUSING EQUIPMENT,Peoples Services Directorate,Set Up Costs - Children Leaving Care,H336,
http://opendatacommunities.org/id/london-borough-council/sutton,London Borough of Sutton,15/07/2019,1279574,64.93 , WWW.ARGOS.CO.UK,CLIENT HOUSING EQUIPMENT,Peoples Services Directorate,Set Up Costs - Children Leaving Care,H336,
http://opendatacommunities.org/id/london-borough-council/sutton,London Borough of Sutton,22/07/2019,1279574,462.92 , WWW.ARGOS.CO.UK,462.92 - H336 0304 9999 -LCT ITEMS,Peoples Services Directorate,Set Up Costs - Children Leaving Care,H336,
http://opendatacommunities.org/id/london-borough-council/sutton,London Borough of Sutton,22/07/2019,1279574,503.50 , WWW.IKEA.COM,503.50 - H336 0304 9999 - SETUP ITEMS,Peoples Services Directorate,Set Up Costs - Children Leaving Care,H336,
http://opendatacommunities.org/id/london-borough-council/sutton,London Borough of Sutton,22/07/2019,1279574,412.75 , WWW.IKEA.COM,412.75 - H336 0304 9999 - LCT ITEMS FOR YOUNG PERSON,Peoples Services Directorate,Set Up Costs - Children Leaving Care,H336,
http://opendatacommunities.org/id/london-borough-council/sutton,London Borough of Sutton,22/07/2019,1279574,635.00 , NORTHDOWN CARPETS,635.00 - H336 0304 9999 - CARPETS,Peoples Services Directorate,Set Up Costs - Children Leaving Care,H336,
http://opendatacommunities.org/id/london-borough-council/sutton,London Borough of Sutton,09/07/2019,1279574,326.67 , BRITISH HEART FOUNDATI,TG SETTING UP,Peoples Services Directorate,Set Up Costs - Children Leaving Care,H336,
http://opendatacommunities.org/id/london-borough-council/sutton,London Borough of Sutton,02/07/2019,1279574,105.00 , BRITISH HEART FOUNDATI,TG SSETTING UP,Peoples Services Directorate,Set Up Costs - Children Leaving Care,H336,
http://opendatacommunities.org/id/london-borough-council/sutton,London Borough of Sutton,02/07/2019,1279574,170.77 , WWW.ARGOS.CO.UK,TG SSET UP,Peoples Services Directorate,Set Up Costs - Children Leaving Care,H336,
http://opendatacommunities.org/id/london-borough-council/sutton,London Borough of Sutton,01/07/2019,1279574,758.97 , SUTTON APPLIANCES,TG SET UP,Peoples Services Directorate,Set Up Costs - Children Leaving Care,H336,
http://opendatacommunities.org/id/london-borough-council/sutton,London Borough of Sutton,30/06/2019,1279574,35.40 , WILKO RETAIL LIMIT,TG SET UP,Peoples Services Directorate,Set Up Costs - Children Leaving Care,H336,
http://opendatacommunities.org/id/london-borough-council/sutton,London Borough of Sutton,03/07/2019,1279574,20.00 , OYSTER AUTO-TOP UP,20.00 - A530 ? 9999 - OYSTER TOP UP,Peoples Services Directorate,Travelling and Subsistence Allowances,A530,
http://opendatacommunities.org/id/london-borough-council/sutton,London Borough of Sutton,27/06/2019,1279574,20.00 , OYSTER AUTO-TOP UP,20.00 - A530 ? 9999 - OYSTER TOP UP,Peoples Services Directorate,Travelling and Subsistence Allowances,A530,
http://opendatacommunities.org/id/london-borough-council/sutton,London Borough of Sutton,27/06/2019,1279574,69.42 , MINICABIT,69.42 - A530 0311 9999 - MINICABI,Peoples Services Directorate,Travelling and Subsistence Allowances,A530,
http://opendatacommunities.org/id/london-borough-council/sutton,London Borough of Sutton,05/07/2019,1279574,"3,199.00 ", UKBA9943441514,"3,199.00 - F299 0311 9999 - CERTIFICATE OF SPONSORSHIP.PNG",Peoples Services Directorate,Fees - Other,F299,
http://opendatacommunities.org/id/london-borough-council/sutton,London Borough of Sutton,04/07/2019,1279574,952.85 , TRAVELODGE,952.85 - H211 0310 9999 - TRAVELODGE MORDEN,Peoples Services Directorate,C.C.A Rent & Utilities,H211,
http://opendatacommunities.org/id/london-borough-council/sutton,London Borough of Sutton,17/07/2019,1279574,20.00 , OYSTER AUTO-TOP UP,20.00 AUTO TOP UP - 17TH JULY -,Peoples Services Directorate,Travelling and Subsistence Allowances,A530,
http://opendatacommunities.org/id/london-borough-council/sutton,London Borough of Sutton,14/07/2019,1279574,20.00 , OYSTER AUTO-TOP UP,,Peoples Services Directorate,Travelling and Subsistence Allowances,A530,
http://opendatacommunities.org/id/london-borough-council/sutton,London Borough of Sutton,14/07/2019,1279574,20.00 , OYSTER AUTO-TOP UP,20.00 - A530 0311 9999 - OYSTER TOP UP,Peoples Services Directorate,Travelling and Subsistence Allowances,A530,
http://opendatacommunities.org/id/london-borough-council/sutton,London Borough of Sutton,13/07/2019,1279574,20.00 , OYSTER AUTO-TOP UP,,Peoples Services Directorate,Travelling and Subsistence Allowances,A530,
http://opendatacommunities.org/id/london-borough-council/sutton,London Borough of Sutton,12/07/2019,1279574,20.65 , OYSTER ONLINE,,Peoples Services Directorate,Travelling and Subsistence Allowances,A530,
http://opendatacommunities.org/id/london-borough-council/sutton,London Borough of Sutton,11/07/2019,1279574,22.00 , LBSUTTON,20.00 - A530  9999 - OYSTER TOP UP,Peoples Services Directorate,Travelling and Subsistence Allowances,A530,
http://opendatacommunities.org/id/london-borough-council/sutton,London Borough of Sutton,11/07/2019,1279574,20.00 , OYSTER AUTO-TOP UP,20.00 - A530  9999 - OYSTER TOP UP,Peoples Services Directorate,Travelling and Subsistence Allowances,A530,
http://opendatacommunities.org/id/london-borough-council/sutton,London Borough of Sutton,09/07/2019,1279574,153.90 , THE POST OFFICE,153.90 - POST OFFICE (PASSPORTS),Peoples Services Directorate,Travelling and Subsistence Allowances,A530,
http://opendatacommunities.org/id/london-borough-council/sutton,London Borough of Sutton,06/07/2019,1279574,20.00 , OYSTER AUTO-TOP UP,20.00 - A530 9999 - OYSTER TOP UP,Peoples Services Directorate,Travelling and Subsistence Allowances,A530,
http://opendatacommunities.org/id/london-borough-council/sutton,London Borough of Sutton,04/07/2019,1279574,20.65 , OYSTER ONLINE,20.00 - A530  9999 - OYSTER TOP UP,Peoples Services Directorate,Travelling and Subsistence Allowances,A530,
http://opendatacommunities.org/id/london-borough-council/sutton,London Borough of Sutton,30/06/2019,1279574,20.00 , OYSTER AUTO-TOP UP,20.00 - A530 ? 9999 - OYSTER TOP UP,Peoples Services Directorate,Travelling and Subsistence Allowances,A530,
http://opendatacommunities.org/id/london-borough-council/sutton,London Borough of Sutton,29/06/2019,1279574,20.00 , OYSTER AUTO-TOP UP,20.00 - A530 ? 9999 - OYSTER TOP UP,Peoples Services Directorate,Travelling and Subsistence Allowances,A530,
http://opendatacommunities.org/id/london-borough-council/sutton,London Borough of Sutton,29/06/2019,1279574,20.00 , OYSTER AUTO-TOP UP,20.00 - A530 ? 9999 - OYSTER TOP UP,Peoples Services Directorate,Travelling and Subsistence Allowances,A530,
http://opendatacommunities.org/id/london-borough-council/sutton,London Borough of Sutton,27/06/2019,1279574,39.47 , MINICABIT,39.47 - A530 0311 9999 - MINICABIT.,Peoples Services Directorate,Travelling and Subsistence Allowances,A530,
http://opendatacommunities.org/id/london-borough-council/sutton,London Borough of Sutton,28/06/2019,1279574,173.00 , THE POST OFFICE,173.00 - F106 0311 9999  PASSPORT RECEIPT - FL .PNG,Peoples Services Directorate,Personal Requisites,F106,
http://opendatacommunities.org/id/london-borough-council/sutton,London Borough of Sutton,17/07/2019,1279574,26.00 , LB CROYDON,REQUISITES,Peoples Services Directorate,Personal Requisites,F106,
http://opendatacommunities.org/id/london-borough-council/sutton,London Borough of Sutton,08/07/2019,1279574,127.00 , HM PASSPORT,REQUISITES,Peoples Services Directorate,Personal Requisites,F106,
http://opendatacommunities.org/id/london-borough-council/sutton,London Borough of Sutton,25/07/2019,1279574,73.00 , LUTON BC INTERNET,73.00 - F106 0311 9999 - LAC BIRTH CERT,Peoples Services Directorate,Personal Requisites,F106,
http://opendatacommunities.org/id/london-borough-council/sutton,London Borough of Sutton,12/07/2019,1279574,153.50 , HM PASSPORT OFFICE,,Peoples Services Directorate,Personal Requisites,F106,
http://opendatacommunities.org/id/london-borough-council/sutton,London Borough of Sutton,11/07/2019,1279574,33.00 , LBSUTTON,33.00 - F106 0311 9999,Peoples Services Directorate,Personal Requisites,F106,
http://opendatacommunities.org/id/london-borough-council/sutton,London Borough of Sutton,27/06/2019,1279574,146.50 , THE POST OFFICE,146.50 - PASSPORT RECEIPT,Peoples Services Directorate,Personal Requisites,F106,
http://opendatacommunities.org/id/london-borough-council/sutton,London Borough of Sutton,19/07/2019,1279574,291.67 , WWW.KENT.GOV.UK,TRAVEL,Peoples Services Directorate,Provisions - General,F150,
http://opendatacommunities.org/id/london-borough-council/sutton,London Borough of Sutton,18/07/2019,1279574,52.20 , WWW.TENPIN.CO.UK,52.20 - F150 0311 9999 - LAC ACTIVITY.,Peoples Services Directorate,Provisions - General,F150,
http://opendatacommunities.org/id/london-borough-council/sutton,London Borough of Sutton,11/07/2019,1279574,20.00 , OYSTER AUTO-TOP UP,20.00 - A530  9999 - OYSTER TOP UP,Peoples Services Directorate,Travelling and Subsistence Allowances,A530,
http://opendatacommunities.org/id/london-borough-council/sutton,London Borough of Sutton,07/07/2019,1279574,20.00 , OYSTER AUTO-TOP UP,20.00 - A530 9999 - OYSTER TOP UP,Peoples Services Directorate,Travelling and Subsistence Allowances,A530,
http://opendatacommunities.org/id/london-borough-council/sutton,London Borough of Sutton,29/06/2019,1279574,20.00 , OYSTER AUTO-TOP UP,20.00 - A530 ? 9999 - OYSTER TOP U,Peoples Services Directorate,Travelling and Subsistence Allowances,A530,
http://opendatacommunities.org/id/london-borough-council/sutton,London Borough of Sutton,27/06/2019,1279574,20.00 , OYSTER AUTO-TOP UP,20.00 - A530 ? 9999 - OYSTER TOP UP,Peoples Services Directorate,Travelling and Subsistence Allowances,A530,
http://opendatacommunities.org/id/london-borough-council/sutton,London Borough of Sutton,16/07/2019,1279574,105.83 , HM PASSPORT,PASSPORT,Peoples Services Directorate,Personal Requisites,F106,
http://opendatacommunities.org/id/london-borough-council/sutton,London Borough of Sutton,17/07/2019,1279574,70.00 , HERTFORDSHIRE COUNTY C,REQUISITES,Peoples Services Directorate,Personal Requisites,F106,
http://opendatacommunities.org/id/london-borough-council/sutton,London Borough of Sutton,10/07/2019,1279574,70.00 , HERTFORDSHIRE COUNTY C,REQUISITES,Peoples Services Directorate,Personal Requisites,F106,
http://opendatacommunities.org/id/london-borough-council/sutton,London Borough of Sutton,10/07/2019,1279574,70.00 , HERTFORDSHIRE COUNTY C,REQUISITES,Peoples Services Directorate,Personal Requisites,F106,
http://opendatacommunities.org/id/london-borough-council/sutton,London Borough of Sutton,08/07/2019,1279574,127.00 , HM PASSPORT,REQUISITES,Peoples Services Directorate,Personal Requisites,F106,
http://opendatacommunities.org/id/london-borough-council/sutton,London Borough of Sutton,08/07/2019,1279574,33.00 , LBSUTTON,REQUISITES,Peoples Services Directorate,Personal Requisites,F106,
http://opendatacommunities.org/id/london-borough-council/sutton,London Borough of Sutton,08/07/2019,1279574,39.00 , LB CROYDON,REQUISITES,Peoples Services Directorate,Personal Requisites,F106,
http://opendatacommunities.org/id/london-borough-council/sutton,London Borough of Sutton,22/07/2019,1279574,398.99 , WWW.ARGOS.CO.UK,398.99 - F106 0312 9999 - ARGOS ORDER,Peoples Services Directorate,Personal Requisites,F106,
http://opendatacommunities.org/id/london-borough-council/sutton,London Borough of Sutton,18/07/2019,1279574,12.00 , LONDON COUNCILS,,Peoples Services Directorate,Personal Requisites,F106,
http://opendatacommunities.org/id/london-borough-council/sutton,London Borough of Sutton,27/06/2019,1279574,127.00 , HM PASSPORT,127.00 - F106 0312 9999 - PASSPORT OFFICE APPOINTMENT.,Peoples Services Directorate,Personal Requisites,F106,
http://opendatacommunities.org/id/london-borough-council/sutton,London Borough of Sutton,28/06/2019,1279574,864.50 , TRAVELODGE,ACCOMODATION,Peoples Services Directorate,Accommodation - Bed and Breakfast,H202,
http://opendatacommunities.org/id/london-borough-council/sutton,London Borough of Sutton,24/07/2019,1279574,20.65 , OYSTER ONLINE,20.65 - A530 0318 9999,Peoples Services Directorate,Travelling and Subsistence Allowances,A530,
http://opendatacommunities.org/id/london-borough-council/sutton,London Borough of Sutton,22/07/2019,1279574,20.00 , OYSTER AUTO-TOP UP,20.00 AUTO TOP UP - A530 0318 9999,Peoples Services Directorate,Travelling and Subsistence Allowances,A530,
http://opendatacommunities.org/id/london-borough-council/sutton,London Borough of Sutton,21/07/2019,1279574,20.00 , OYSTER AUTO-TOP UP,20.00 AUTO TOP UP - A530 0318 9999 -,Peoples Services Directorate,Travelling and Subsistence Allowances,A530,
http://opendatacommunities.org/id/london-borough-council/sutton,London Borough of Sutton,21/07/2019,1279574,20.00 , OYSTER AUTO-TOP UP,20.00 - A530 0318 9999 -,Peoples Services Directorate,Travelling and Subsistence Allowances,A530,
http://opendatacommunities.org/id/london-borough-council/sutton,London Borough of Sutton,20/07/2019,1279574,20.00 , OYSTER AUTO-TOP UP,20.00 - A530 0318 9999 - OYSTER,Peoples Services Directorate,Travelling and Subsistence Allowances,A530,
http://opendatacommunities.org/id/london-borough-council/sutton,London Borough of Sutton,18/07/2019,1279574,20.00 , OYSTER AUTO-TOP UP,20.00 AUTO TOP UP - A530 0318 9999 -,Peoples Services Directorate,Travelling and Subsistence Allowances,A530,
http://opendatacommunities.org/id/london-borough-council/sutton,London Borough of Sutton,17/07/2019,1279574,20.00 , OYSTER AUTO-TOP UP,20.00 AUTO TOP UP - A530 0318 9999,Peoples Services Directorate,Travelling and Subsistence Allowances,A530,
http://opendatacommunities.org/id/london-borough-council/sutton,London Borough of Sutton,11/07/2019,1279574,20.00 , OYSTER AUTO-TOP UP,20.00 - A530  9999 - OYSTER TOP UP,Peoples Services Directorate,Travelling and Subsistence Allowances,A530,
http://opendatacommunities.org/id/london-borough-council/sutton,London Borough of Sutton,05/07/2019,1279574,20.00 , OYSTER AUTO-TOP UP,20.00 - A530  9999 - OYSTER TOP UP,Peoples Services Directorate,Travelling and Subsistence Allowances,A530,
http://opendatacommunities.org/id/london-borough-council/sutton,London Borough of Sutton,29/06/2019,1279574,20.00 , OYSTER AUTO-TOP UP,20.00 - A530 ? 9999 - OYSTER TOP UP,Peoples Services Directorate,Travelling and Subsistence Allowances,A530,
http://opendatacommunities.org/id/london-borough-council/sutton,London Borough of Sutton,11/07/2019,1279574,124.17 , ANYVANUK,TRANSPORT,Peoples Services Directorate,Personal Requisites,F106,
http://opendatacommunities.org/id/london-borough-council/sutton,London Borough of Sutton,18/07/2019,1279574,255.00 , WWW.ANYVAN.COM,POSSESSIONS MOVE FOR SOCIAL CARE CLIENT,Peoples Services Directorate,Client Care/Assistance,H301,
http://opendatacommunities.org/id/london-borough-council/sutton,London Borough of Sutton,21/07/2019,1279574,20.00 , OYSTER AUTO-TOP UP,20.00 - A530 0320 9999 -,Peoples Services Directorate,Travelling and Subsistence Allowances,A530,
http://opendatacommunities.org/id/london-borough-council/sutton,London Borough of Sutton,17/07/2019,1279574,20.00 , OYSTER AUTO-TOP UP,20.00 - A530 0320 9999 - OYSTER,Peoples Services Directorate,Travelling and Subsistence Allowances,A530,
http://opendatacommunities.org/id/london-borough-council/sutton,London Borough of Sutton,03/07/2019,1279574,"1,108.00 ", SQ  COCKTAIL EVENTS CO,"1,108.00 - F106 0320 9999 - BBQ FOSTERING EVENT.PNG",Peoples Services Directorate,Personal Requisites,F106,
http://opendatacommunities.org/id/london-borough-council/sutton,London Borough of Sutton,24/07/2019,1279574,20.00 , WWW.WIGHTLINK.CO.UK,20.00 - A530 0321 9999 - WIGHLINK .,Peoples Services Directorate,Travelling and Subsistence Allowances,A530,
http://opendatacommunities.org/id/london-borough-council/sutton,London Borough of Sutton,18/07/2019,1279574,45.99 , THE HOUSE INC LTD,AWAITING CORRECT RECEIPT FOR FLOWERS,Peoples Services Directorate,Provisions - General,F150,
http://opendatacommunities.org/id/london-borough-council/sutton,London Borough of Sutton,22/07/2019,1279574,680.00 , COUNTY COUNTY,680.00 - F299 0321 9999 - CROYDON COURT PAYMENTS,Peoples Services Directorate,Fees - Other,F299,
http://opendatacommunities.org/id/london-borough-council/sutton,London Borough of Sutton,12/07/2019,1279574,20.00 , OYSTER AUTO-TOP UP,20.00 - A530 0330 9999 - OYSTER TOP UP,Chief Executive's Directorate,Travelling and Subsistence Allowances,A530,
http://opendatacommunities.org/id/london-borough-council/sutton,London Borough of Sutton,24/07/2019,1279574,16.66 , AMZNMKTPLACE AMAZON.CO,"SPLIT - SAFETY 1ST SECURE TECH SIMPLY CLOSE METAL GATE, WHITE (100%)",Peoples Services Directorate,Personal Requisites,F106,
http://opendatacommunities.org/id/london-borough-council/sutton,London Borough of Sutton,24/07/2019,1279574,16.66 , AMZNMKTPLACE AMAZON.CO,"SPLIT - SAFETY 1ST SECURE TECH SIMPLY CLOSE METAL GATE, WHITE (100%)",Peoples Services Directorate,Provisions - General,F150,
http://opendatacommunities.org/id/london-borough-council/sutton,London Borough of Sutton,24/07/2019,1279574,48.84 , AMZNMKTPLACE AMAZON.CO,SPLIT - HEAVY DUTY BULLDOZER YARD BRUSH - COLOR: YELLOW (93.47%),Peoples Services Directorate,Provisions - General,F150,
http://opendatacommunities.org/id/london-borough-council/sutton,London Borough of Sutton,24/07/2019,1279574,4.15 , AMZNMKTPLACE AMAZON.CO,BALANCING ENTRY AMOUNT (6.53%),Peoples Services Directorate,Provisions - General,F150,
http://opendatacommunities.org/id/london-borough-council/sutton,London Borough of Sutton,24/07/2019,1279574,37.99 , AMZNMKTPLACE AMAZON.CO,SPLIT - LAXLLENT SUN SHADE SAIL SUN PROTECTION(111.11%),Peoples Services Directorate,Provisions - General,F150,
http://opendatacommunities.org/id/london-borough-council/sutton,London Borough of Sutton,24/07/2019,1279574,(3.80), AMZNMKTPLACE AMAZON.CO,BALANCING ENTRY AMOUNT (-33.33%),Peoples Services Directorate,Provisions - General,F150,
http://opendatacommunities.org/id/london-borough-council/sutton,London Borough of Sutton,23/07/2019,1279574,37.99 , AMZNMKTPLACE AMAZON.CO,SPLIT - LAXLLENT SUN SHADE SAIL SUN PROTECTION TRIANGLE AWNING CANOPY 96.5% (111.11%),Peoples Services Directorate,Provisions - General,F150,
http://opendatacommunities.org/id/london-borough-council/sutton,London Borough of Sutton,23/07/2019,1279574,(3.80), AMZNMKTPLACE AMAZON.CO,BALANCING ENTRY AMOUNT (-33.33%),Peoples Services Directorate,Provisions - General,F150,
http://opendatacommunities.org/id/london-borough-council/sutton,London Borough of Sutton,08/07/2019,1279574,91.58 , AMZNMKTPLACE,"SPLIT - NUMATIC NUVAC VNP180-11 NA1 KIT, GREY (100%)",Peoples Services Directorate,Provisions - General,F150,
http://opendatacommunities.org/id/london-borough-council/sutton,London Borough of Sutton,04/07/2019,1279574,91.12 , TESCO STORES 5999,PROVISIONS FOR SFC SERVICES FOR THE CENTRE,Peoples Services Directorate,Provisions - General,F150,
http://opendatacommunities.org/id/london-borough-council/sutton,London Borough of Sutton,04/07/2019,1279574,(18.17), TESCO STORES 5999,18.17 REFUND - TESCO - JENA INSULATED CUPS WITH LIDS 8PK,Peoples Services Directorate,Provisions - General,F150,
http://opendatacommunities.org/id/london-borough-council/sutton,London Borough of Sutton,02/07/2019,1279574,14.16 , AMZNMKTPLACE,"SPLIT - OYPLA ELECTRICAL 12"" 3 SPEED OSCILLATING ELECTRIC DESK HOME OFFICE FAN (100%)",Peoples Services Directorate,Provisions - General,F150,
http://opendatacommunities.org/id/london-borough-council/sutton,London Borough of Sutton,10/07/2019,1279574,20.00 , OYSTER AUTO-TOP UP,20.00 - A530  9999 - OYSTER TOP UP,Peoples Services Directorate,Travelling and Subsistence Allowances,A530,
http://opendatacommunities.org/id/london-borough-council/sutton,London Borough of Sutton,10/07/2019,1279574,20.00 , OYSTER AUTO-TOP UP,20.00 - A530  9999 - OYSTER TOP UP,Peoples Services Directorate,Travelling and Subsistence Allowances,A530,
http://opendatacommunities.org/id/london-borough-council/sutton,London Borough of Sutton,07/07/2019,1279574,20.00 , OYSTER AUTO-TOP UP,20.00 - A530  9999 - OYSTER TOP UP,Peoples Services Directorate,Travelling and Subsistence Allowances,A530,
http://opendatacommunities.org/id/london-borough-council/sutton,London Borough of Sutton,12/07/2019,1279574,20.00 , OYSTER AUTO-TOP UP,20.00 - A530 0383 9999 - OYSTER TOP UP,Peoples Services Directorate,Conferences - Travel and Subsistence,A526,
http://opendatacommunities.org/id/london-borough-council/sutton,London Borough of Sutton,13/07/2019,1279574,16.67 , OYSTER AUTO-TOP UP,TRAVEL,Peoples Services Directorate,Travelling and Subsistence Allowances,A530,
http://opendatacommunities.org/id/london-borough-council/sutton,London Borough of Sutton,24/07/2019,1279574,20.00 , OYSTER AUTO-TOP UP,20.00 AUTO TOP UP - A530 0383 9999 -,Peoples Services Directorate,Travelling and Subsistence Allowances,A530,
http://opendatacommunities.org/id/london-borough-council/sutton,London Borough of Sutton,14/07/2019,1279574,20.00 , OYSTER AUTO-TOP UP,20.00 - A530 0383 9999 - OYSTER TOP,Peoples Services Directorate,Travelling and Subsistence Allowances,A530,
http://opendatacommunities.org/id/london-borough-council/sutton,London Borough of Sutton,07/07/2019,1279574,20.00 , OYSTER AUTO-TOP UP,20.00 - A530  9999 - OYSTER TOP UP,Peoples Services Directorate,Travelling and Subsistence Allowances,A530,
http://opendatacommunities.org/id/london-borough-council/sutton,London Borough of Sutton,28/06/2019,1279574,20.00 , OYSTER AUTO-TOP UP,20.00 - A530 ? 9999 - OYSTER TOP,Peoples Services Directorate,Travelling and Subsistence Allowances,A530,
http://opendatacommunities.org/id/london-borough-council/sutton,London Borough of Sutton,26/06/2019,1279574,16.67 , OYSTER AUTO-TOP UP,TRAVEL,Peoples Services Directorate,Recruitment Expenses,A531,
http://opendatacommunities.org/id/london-borough-council/sutton,London Borough of Sutton,15/07/2019,1279574,"1,612.44 ", ROYAL DUTCH AIRLINES (KLM),FLIGHT - LOOKED AFTER CHILD,Peoples Services Directorate,C.C.A Travel & Subsistance,H212,
http://opendatacommunities.org/id/london-borough-council/sutton,London Borough of Sutton,15/07/2019,1279574,"1,612.44 ", ROYAL DUTCH AIRLINES (KLM),FLIGHT - LOOKED AFTER CHILD,Peoples Services Directorate,C.C.A Travel & Subsistance,H212,
http://opendatacommunities.org/id/london-borough-council/sutton,London Borough of Sutton,16/07/2019,1279574,637.12 , EB  PAN LONDON VIRTUAL,NAVSH PAN LONDON VS CONFERENCE - TEAM TRAINING,Peoples Services Directorate,Training - Course Fees,A520,
http://opendatacommunities.org/id/london-borough-council/sutton,London Borough of Sutton,22/07/2019,1279574,7.05 , AMAZON.CO.UK MH0TD5T04,SPLIT - BIC CRISTAL ORIGINAL BALLPOINT PENS  (23.92%),Peoples Services Directorate,LAC - Education,F269,
http://opendatacommunities.org/id/london-borough-council/sutton,London Borough of Sutton,22/07/2019,1279574,22.40 , AMAZON.CO.UK MH0TD5T04,SPLIT - Q-CONNECT RULED MARGIN SPIRAL SOFT COVER NOTEBOOK (76.08%),Peoples Services Directorate,LAC - Education,F269,
http://opendatacommunities.org/id/london-borough-council/sutton,London Borough of Sutton,22/07/2019,1279574,5.07 , AMZNMKTPLACE,SPLIT - STAEDTLER NORIS SCHOOL PENCILS 121 (100%),Peoples Services Directorate,LAC - Education,F269,
http://opendatacommunities.org/id/london-borough-council/sutton,London Borough of Sutton,22/07/2019,1279574,16.67 , AMZNMKTPLACE,SPLIT - SHARPIE FLUO XL HIGHLIGHTER (100%),Peoples Services Directorate,LAC - Education,F269,
http://opendatacommunities.org/id/london-borough-council/sutton,London Borough of Sutton,22/07/2019,1279574,3.33 , AMZNMKTPLACE,BALANCING ENTRY TAX (0%),Peoples Services Directorate,LAC - Education,F269,
http://opendatacommunities.org/id/london-borough-council/sutton,London Borough of Sutton,10/07/2019,1279574,9.07 , AMAZON.CO.UK M65DB6R44,SPLIT - NEW KS3 ENGLISH COMPLETE STUDY & PRACTICE (43.65%),Peoples Services Directorate,LAC - Education,F269,
http://opendatacommunities.org/id/london-borough-council/sutton,London Borough of Sutton,10/07/2019,1279574,4.77 , AMAZON.CO.UK M65DB6R44,SPLIT - KS3 MATHS WORKBOOK (22.95%),Peoples Services Directorate,LAC - Education,F269,
http://opendatacommunities.org/id/london-borough-council/sutton,London Borough of Sutton,10/07/2019,1279574,3.95 , AMAZON.CO.UK M65DB6R44,SPLIT - NEW PRACTISE & LEARN: TIMES TABLES FOR AGES 7-1(19.01%),Peoples Services Directorate,LAC - Education,F269,
http://opendatacommunities.org/id/london-borough-council/sutton,London Borough of Sutton,10/07/2019,1279574,2.99 , AMAZON.CO.UK M65DB6R44,BALANCING ENTRY AMOUNT (14.39%),Peoples Services Directorate,LAC - Education,F269,
http://opendatacommunities.org/id/london-borough-council/sutton,London Borough of Sutton,27/06/2019,1279574,16.24 , AMAZON.CO.UK M68Y20HC4,SPLIT - MESOB ENGLISH - TIGRINYA DICTIONARY: MESOB ENGLISH(65.64%),Peoples Services Directorate,LAC - Education,F269,
http://opendatacommunities.org/id/london-borough-council/sutton,London Borough of Sutton,27/06/2019,1279574,8.50 , AMAZON.CO.UK M68Y20HC4,SPLIT - ENGLISH-TIGRINYA SCHOOL CHILDREN'S BILINGUAL PICTURE DICTIONARY (34.36%),Peoples Services Directorate,LAC - Education,F269,
http://opendatacommunities.org/id/london-borough-council/sutton,London Borough of Sutton,05/07/2019,1279574,20.00 , OYSTER AUTO-TOP UP,OYSTERCARD TOP UP,"Environment, Housing & Regeneration Directorate",General Office Expenses,F235,
http://opendatacommunities.org/id/london-borough-council/sutton,London Borough of Sutton,11/07/2019,1279574,20.00 , OYSTER AUTO-TOP UP,OYSTERCARD TOP UP,"Environment, Housing & Regeneration Directorate",General Office Expenses,F235,
http://opendatacommunities.org/id/london-borough-council/sutton,London Borough of Sutton,28/06/2019,1279574,20.00 , OYSTER AUTO-TOP UP,OYSTERCARD TOP UP,"Environment, Housing & Regeneration Directorate",General Office Expenses,F235,
http://opendatacommunities.org/id/london-borough-council/sutton,London Borough of Sutton,14/07/2019,1279574,202.47 , AMZNMKTPLACE,INK FOR CCTV PRINTER,"Environment, Housing & Regeneration Directorate",General Office Expenses,F235,
http://opendatacommunities.org/id/london-borough-council/sutton,London Borough of Sutton,25/07/2019,1279574,125.00 , EVERGREEN EXTERIOR,TREE FOR CENTRE OF GARDEN,Resources Directorate,General Office Expenses,F235,
http://opendatacommunities.org/id/london-borough-council/sutton,London Borough of Sutton,12/07/2019,1279574,1.42 , TESCO STORES 6664,MILK FOR CC,Resources Directorate,Hospitality (VAT not Recoverable),F325,
http://opendatacommunities.org/id/london-borough-council/sutton,London Borough of Sutton,12/07/2019,1279574,8.42 , MARKS&SPENCER PLC,FOOD FOR CONFERENCE,Resources Directorate,Hospitality (VAT not Recoverable),F325,
http://opendatacommunities.org/id/london-borough-council/sutton,London Borough of Sutton,09/07/2019,1279574,8.33 , MARKS&SPENCER PLC,FOOD FOR CONFERENCE,Resources Directorate,Hospitality (VAT not Recoverable),F325,
http://opendatacommunities.org/id/london-borough-council/sutton,London Borough of Sutton,09/07/2019,1279574,44.08 , MARKS&SPENCER PLC,FOOD FOR CONFERENCE FOR CMT SUPPORT,Resources Directorate,Hospitality (VAT not Recoverable),F325,
http://opendatacommunities.org/id/london-borough-council/sutton,London Borough of Sutton,26/06/2019,1279574,12.50 , CAFFE NEO,HOSPITALITY FOR CONFERENCE FOR MEETING,Resources Directorate,Hospitality (VAT not Recoverable),F325,
http://opendatacommunities.org/id/london-borough-council/sutton,London Borough of Sutton,10/07/2019,1279574,3.82 , TESCO STORE 3235,MILK SUGAR BIN,Resources Directorate,Hospitality (VAT not Recoverable),F325,
http://opendatacommunities.org/id/london-borough-council/sutton,London Borough of Sutton,03/07/2019,1279574,8.32 , SPOTIFY P0BA4EE6D4,MUSIC FOR WEDDINGS,Resources Directorate,Subscriptions - General,F450,
http://opendatacommunities.org/id/london-borough-council/sutton,London Borough of Sutton,13/07/2019,1279574,22.00 , WM MORRISONS STORE,CHAMPAGNE GLASSES FOR WEDDINGS,Resources Directorate,Miscellaneous Expenses,F620,
http://opendatacommunities.org/id/london-borough-council/sutton,London Borough of Sutton,24/07/2019,1279574,76.05 , EVERGREEN EXTERIOR,OLIVE TREE FOR REGISTER OFFICE GARDEN,Resources Directorate,Miscellaneous Expenses,F620,
http://opendatacommunities.org/id/london-borough-council/sutton,London Borough of Sutton,23/07/2019,1279574,41.67 , FACEBK RF4ZSM6AL2,SPLIT - CLIMATE ACTION WEEK (20%),"Environment, Housing & Regeneration Directorate",Community Initiatives,F322,
http://opendatacommunities.org/id/london-borough-council/sutton,London Borough of Sutton,20/07/2019,1279574,20.00 , OYSTER AUTO-TOP UP,OYSTERCARD TOP UP,"Environment, Housing & Regeneration Directorate",General Office Expenses,F235,
http://opendatacommunities.org/id/london-borough-council/sutton,London Borough of Sutton,04/07/2019,1279574,20.00 , OYSTER AUTO-TOP UP,OYSTERCARD TOP UP,HRA,General Office Expenses,F235,
http://opendatacommunities.org/id/london-borough-council/sutton,London Borough of Sutton,11/07/2019,1279574,20.00 , OYSTER AUTO-TOP UP,OYSTERCARD TOP UP,"Environment, Housing & Regeneration Directorate",General Office Expenses,F235,
http://opendatacommunities.org/id/london-borough-council/sutton,London Borough of Sutton,16/07/2019,1279574,15.00 , MELVILLE CARS LTD,TRANSPORT TO CROYDON,"Environment, Housing & Regeneration Directorate",Bed and Breakfast Accommodation,G400,
http://opendatacommunities.org/id/london-borough-council/sutton,London Borough of Sutton,15/07/2019,1279574,469.25 , TRAVELODGE,TRAVELODGE CHESSINGTON FOR 7 NIGHTS,"Environment, Housing & Regeneration Directorate",Bed and Breakfast Accommodation,G400,
http://opendatacommunities.org/id/london-borough-council/sutton,London Borough of Sutton,02/07/2019,1279574,34.83 , TRAINLINE,TRAIN TICKETS TO ATTEND NORTHAMPTONSHIRE COUNTY COUNCIL IMPROVEMENT BOARD MEETING 6 ON THE 8TH JULY 2019,Chief Executive's Directorate,Travelling and Subsistence Allowances,A530,
http://opendatacommunities.org/id/london-borough-council/sutton,London Borough of Sutton,27/06/2019,1279574,123.48 , TRAINLINE,TRAIN TICKETS TO ATTEND LGA CONFERENCE 02.07.19 - 04.07.19,Chief Executive's Directorate,Travelling and Subsistence Allowances,A530,
http://opendatacommunities.org/id/london-borough-council/sutton,London Borough of Sutton,18/07/2019,1279574,20.00 , OYSTER AUTO-TOP UP,TEAM OYSTER,Chief Executive's Directorate,Travelling and Subsistence Allowances,A530,
http://opendatacommunities.org/id/london-borough-council/sutton,London Borough of Sutton,14/07/2019,1279574,20.00 , OYSTER AUTO-TOP UP,TEAM OYSTER,Chief Executive's Directorate,Travelling and Subsistence Allowances,A530,
http://opendatacommunities.org/id/london-borough-council/sutton,London Borough of Sutton,18/07/2019,1279574,118.80 , THE GRANGE,REFRESHMENTS FOR CU DIVISIONAL AWAYDAY ON THE 26TH JUNE 2019,Chief Executive's Directorate,Refreshments,F155,
http://opendatacommunities.org/id/london-borough-council/sutton,London Borough of Sutton,11/07/2019,1279574,79.98 , RYMAN 1176,MAGIC WHITEBOARD A1 FOR ST/CMT AWAYDAY ON FRIDAY 15TH JULY 2019,Chief Executive's Directorate,Stationery,F220,
http://opendatacommunities.org/id/london-borough-council/sutton,London Borough of Sutton,12/07/2019,1279574,250.00 , PAYPAL  LGCOMMS2018,LGCOMMS SUBSCRIPTION,Chief Executive's Directorate,Subscriptions - General,F450,
http://opendatacommunities.org/id/london-borough-council/sutton,London Borough of Sutton,24/07/2019,1279574,0.99 , AMAZON PRIME MH3SP8EX4,INCORRECT CHARGE - REFERRED BACK TO CONTROL TEAM TO RAISE AS FRAUD,Chief Executive's Directorate,Fees - Computer Software,F384,
http://opendatacommunities.org/id/london-borough-council/sutton,London Borough of Sutton,14/07/2019,1279574,119.82 , MAILCHIMP    MONTHLY,WEB HOSTING,Chief Executive's Directorate,Fees - Computer Software,F384,
http://opendatacommunities.org/id/london-borough-council/sutton,London Borough of Sutton,05/07/2019,1279574,21.99 , AMAZON.CO.UK M614022K4,PRINTER INK ORDERED FOR COUNCILLOR,Resources Directorate,IT Licences,F385,
http://opendatacommunities.org/id/london-borough-council/sutton,London Borough of Sutton,10/07/2019,1279574,15.00 , OYSTER ONLINE,20.00 - A530 9999 - OYSTER TOP UP,Resources Directorate,Travelling and Subsistence Allowances,A530,
http://opendatacommunities.org/id/london-borough-council/sutton,London Borough of Sutton,15/07/2019,1279574,56.58 , BOOKPOINT LIMITED,STAFF EQUIPMENT,Resources Directorate,Books,F006,
http://opendatacommunities.org/id/london-borough-council/sutton,London Borough of Sutton,23/06/2019,1279574,12.46 , WIX.COM,PAYMENT TO WIX.COM FOR RENEWAL OF DOMAIN JOBSINSUTTON.COM,Resources Directorate,Staff Advertising,A500,
http://opendatacommunities.org/id/london-borough-council/sutton,London Borough of Sutton,01/07/2019,1279574,150.00 , MARKS&SPENCER PLC,,Resources Directorate,Provisions - General,F150,
http://opendatacommunities.org/id/london-borough-council/sutton,London Borough of Sutton,30/06/2019,1279574,20.00 , OYSTER AUTO-TOP UP,150.00 - F106 4222 9999 - MARKS AND SPENCER GIFT VOUCHER.,Resources Directorate,Provisions - General,F150,
http://opendatacommunities.org/id/london-borough-council/sutton,London Borough of Sutton,23/07/2019,1279574,166.66 , FACEBK RF4ZSM6AL2,SPLIT - DOMESTIC ABUSE (80%),Chief Executive's Directorate,Printing - General,F215,
http://opendatacommunities.org/id/london-borough-council/sutton,London Borough of Sutton,16/07/2019,1279574,91.65 , AMAZON.CO.UK MH30W6FX4,TWO AMAZON SHOWS FOR THE AI PROJECT - EVOLVE DIGITAL,Resources Directorate,General Office Expenses,F235,
http://opendatacommunities.org/id/london-borough-council/sutton,London Borough of Sutton,09/07/2019,1279574,(6.66), AMAZON PRIME,,Chief Executive's Directorate,General Office Expenses,F235,
http://opendatacommunities.org/id/london-borough-council/sutton,London Borough of Sutton,12/07/2019,1279574,35.00 , EB  LUNCH WITH THE MAY,TICKETS FOR MAYOR TO ATTENDING LUNCH WITH CROYDON MAYOR X 2,Resources Directorate,Mayor's Allowance,F407,
http://opendatacommunities.org/id/london-borough-council/sutton,London Borough of Sutton,11/07/2019,1279574,75.00 , CLARKES JEWELLERS LTD,REPAIR OF BAR ON MAYORAL CHAIN,Resources Directorate,Mayor's Allowance,F407,
http://opendatacommunities.org/id/london-borough-council/sutton,London Borough of Sutton,01/07/2019,1279574,29.95 , FUNDRAISINGBOXES.CO.UK,CHARITY BUCKETS,Resources Directorate,Mayor's Allowance,F407,
http://opendatacommunities.org/id/london-borough-council/sutton,London Borough of Sutton,11/07/2019,1279574,20.00 , OYSTER AUTO-TOP UP,AUTOMATIC OYSTER TOP UP,Resources Directorate,Members Expenses - Travel and Subsistence,F401,
http://opendatacommunities.org/id/london-borough-council/sutton,London Borough of Sutton,02/07/2019,1279574,41.12 , PARTY SUPERSTORES,CICC EVENT,Chief Executive's Directorate,Refreshments,F155,
http://opendatacommunities.org/id/london-borough-council/sutton,London Borough of Sutton,11/07/2019,1279574,21.67 , WM MORRISONS STORE,CATERING FOR CHILDREN IN CARE COUNCIL EVENT,Chief Executive's Directorate,Hospitality (VAT not Recoverable),F325,
http://opendatacommunities.org/id/london-borough-council/sutton,London Borough of Sutton,10/07/2019,1279574,15.00 , WM MORRISONS STORE,CATERING FOR CHILDREN IN CARE COUNCIL EVENT,Chief Executive's Directorate,Hospitality (VAT not Recoverable),F325,
http://opendatacommunities.org/id/london-borough-council/sutton,London Borough of Sutton,10/07/2019,1279574,6.71 , WILKO RETAIL LIMIT,CATERING FOR CHILDREN IN CARE COUNCIL EVENT,Chief Executive's Directorate,Hospitality (VAT not Recoverable),F325,
http://opendatacommunities.org/id/london-borough-council/sutton,London Borough of Sutton,10/07/2019,1279574,9.16 , AMZNMKTPLACE,VGA ADAPTORS AS ADVISED BY ICT,Chief Executive's Directorate,Corporate Publicity,F356,
http://opendatacommunities.org/id/london-borough-council/sutton,London Borough of Sutton,28/06/2019,1279574,32.92 , VIRGIN TRAINS,TRAIN TRAVEL LGCOMMS,Chief Executive's Directorate,Corporate Publicity,F356,
http://opendatacommunities.org/id/london-borough-council/sutton,London Borough of Sutton,26/06/2019,1279574,246.27 , GOOGLE  ADS9800860421,BALANCING ENTRY AMOUNT (100%),Chief Executive's Directorate,Corporate Publicity,F356,
http://opendatacommunities.org/id/london-borough-council/sutton,London Borough of Sutton,12/07/2019,1279574,0.53 ,,FRAUDULENT ACTIVITY,Chief Executive's Directorate,Miscellaneous Expenses,F620,
http://opendatacommunities.org/id/london-borough-council/sutton,London Borough of Sutton,11/07/2019,1279574,5.05 , PARTY SUPERSTORES,TABLE CLOTH FOR CHILDREN IN CARE COUNCIL EVENT (16+ DINNER),Chief Executive's Directorate,Miscellaneous Expenses,F620,
http://opendatacommunities.org/id/london-borough-council/sutton,London Borough of Sutton,11/07/2019,1279574,19.20 , SCREENCASTIFY PREMIUM,FRAUDULENT ACTIVITY,Chief Executive's Directorate,Miscellaneous Expenses,F620,
http://opendatacommunities.org/id/london-borough-council/sutton,London Borough of Sutton,03/07/2019,1279574,433.37 , APPLIANCEDIRECT CO,AIR COOLERS FOR SECONDARY BECC,"Environment, Housing & Regeneration Directorate",Other Equipment - Purchase,F015,
http://opendatacommunities.org/id/london-borough-council/sutton,London Borough of Sutton,03/07/2019,1279574,20.82 , AMZNMKTPLACE AMAZON.CO,AIR CONDITIONING DUCTING HOSE SECONDARY BECC,"Environment, Housing & Regeneration Directorate",Other Equipment - Purchase,F015,
http://opendatacommunities.org/id/london-borough-council/sutton,London Borough of Sutton,03/07/2019,1279574,29.30 , AMZNMKTPLACE AMAZON.CO,10 ETHERNET PHONE CABLES FOR SECONDARY BECC,"Environment, Housing & Regeneration Directorate",Other Equipment - Purchase,F015,
http://opendatacommunities.org/id/london-borough-council/sutton,London Borough of Sutton,03/07/2019,1279574,46.87 , AMAZON.CO.UK M68VN92V4,CABLE PROTECTION FLOOR COVERS,"Environment, Housing & Regeneration Directorate",Other Equipment - Purchase,F015,
http://opendatacommunities.org/id/london-borough-council/sutton,London Borough of Sutton,29/06/2019,1279574,90.37 , FACEBK 6ZTSFMEAL2,SUTTON'S FUTURE 31.36 AND SUTTON IN BLOOM 59.01 TO CODE TO F101 1365 9999,"Environment, Housing & Regeneration Directorate",Corporate Publicity,F356,
http://opendatacommunities.org/id/london-borough-council/sutton,London Borough of Sutton,22/07/2019,1279574,(20.82), AMZNMKTPLACE AMAZON.CO,REFUND - AIR CONDITIONING VENTING DUCT,"Environment, Housing & Regeneration Directorate",IT Equipment - Repair and Maintenance,F382,
http://opendatacommunities.org/id/london-borough-council/sutton,London Borough of Sutton,09/07/2019,1279574,170.00 , WWW.APM.ORG.UK,APM MEMBERSHIP (GP),"Environment, Housing & Regeneration Directorate",Subscriptions - General,F450,
http://opendatacommunities.org/id/london-borough-council/sutton,London Borough of Sutton,10/07/2019,1279574,99.00 , HAMPTON INN HOTELS,HOTEL AT CIPFA,Resources Directorate,Conferences - Fees,A525,
http://opendatacommunities.org/id/london-borough-council/sutton,London Borough of Sutton,15/07/2019,1279574,3.30 ,,WEB HOSTING,Resources Directorate,Grants,F473,
http://opendatacommunities.org/id/london-borough-council/sutton,London Borough of Sutton,05/07/2019,1279574,122.95 , WWW.ARGOS.CO.UK,CL&G,Resources Directorate,Grants,F473,
http://opendatacommunities.org/id/london-borough-council/sutton,London Borough of Sutton,03/07/2019,1279574,304.95 , WWW.ARGOS.CO.UK,2 X DIVAN BEDS,Resources Directorate,Grants,F473,
http://opendatacommunities.org/id/london-borough-council/sutton,London Borough of Sutton,27/06/2019,1279574,395.94 , WWW.ARGOS.CO.UK,"CL&G PURCHASE, DIVAN & COOKER",Resources Directorate,Grants,F473,
http://opendatacommunities.org/id/london-borough-council/sutton,London Borough of Sutton,08/07/2019,1279574,355.94 , WWW.ARGOS.CO.UK,PURCHASE OF DOUBLE DIVAN BED AND FRIDGE FREEZER FOR CRISIS GRANT,Resources Directorate,Grants,F473,
http://opendatacommunities.org/id/london-borough-council/sutton,London Borough of Sutton,08/07/2019,1279574,309.98 , WWW.ARGOS.CO.UK,PURCHASE OF FRIDGE FREEZER AND ELECTRIC COOKER FOR CRISIS GRANT,Resources Directorate,Grants,F473,
http://opendatacommunities.org/id/london-borough-council/sutton,London Borough of Sutton,22/07/2019,1279574,33.33 , OYSTER AUTO-TOP UP,OYSTER TOP UP FOR REVENUES STAFF TRAVEL,Resources Directorate,Travelling and Subsistence Allowances,A530,
http://opendatacommunities.org/id/london-borough-council/sutton,London Borough of Sutton,03/07/2019,1279574,30.00 , WWW.GOV.UK,3 X PROBATE CERTIFICATES,Resources Directorate,General Office Expenses,F235,
http://opendatacommunities.org/id/london-borough-council/sutton,London Borough of Sutton,05/07/2019,1279574,22.00 , LBSUTTON MOTO,2X DEATH CERTIFICATE,Resources Directorate,General Office Expenses,F235,
http://opendatacommunities.org/id/london-borough-council/sutton,London Borough of Sutton,03/07/2019,1279574,68.00 , PREMIER INN,PREMIER INN BOOKING - 8TH JULY CIPFA CONFERENCE,Resources Directorate,Hotel Accomodation,A512,
http://opendatacommunities.org/id/london-borough-council/sutton,London Borough of Sutton,02/07/2019,1279574,67.50 , THE PLOUGH INN,ACCOMMODATION,Peoples Services Directorate,Travelling and Subsistence Allowances,A530,
http://opendatacommunities.org/id/london-borough-council/sutton,London Borough of Sutton,25/07/2019,1279574,22.00 , SURREY CC CARD PAY,22.00 - F106 6401 9999 - SURREY REGISTER OFFICE,Peoples Services Directorate,Personal Requisites,F106,
http://opendatacommunities.org/id/london-borough-council/sutton,London Borough of Sutton,15/07/2019,1279574,22.00 , LBSUTTON,22.00 - F106 6401 9999 - SURREY REGISTER OFFICE,Peoples Services Directorate,Personal Requisites,F106,
http://opendatacommunities.org/id/london-borough-council/sutton,London Borough of Sutton,28/06/2019,1279574,12.36 , MINICABIT,TRAVEL,Peoples Services Directorate,C.C.A Travel & Subsistance,H212,
http://opendatacommunities.org/id/london-borough-council/sutton,London Borough of Sutton,18/07/2019,1279574,16.04 , MINICABIT,16.04 - H212 6405 9999 - MINICAB,Peoples Services Directorate,C.C.A Travel & Subsistance,H212,
http://opendatacommunities.org/id/london-borough-council/sutton,London Borough of Sutton,24/07/2019,1279574,475.00 , WWW.LOCAL.GOV.UK,DASS / DCS CONFERENCE 20 - 22 NOVEMBER 2019,Peoples Services Directorate,Conferences - Fees,A525,
http://opendatacommunities.org/id/london-borough-council/sutton,London Borough of Sutton,23/07/2019,1279574,1.50 , WWW.GOV.UK,1X WILL BROUGHT ON GOV.UK SITE,Peoples Services Directorate,Fees - Other,F299,
http://opendatacommunities.org/id/london-borough-council/sutton,London Borough of Sutton,10/07/2019,1279574,20.00 , WWW.GOV.UK,2X PROBATE BROUGHT ON GOV.UK SITE,Peoples Services Directorate,Fees - Other,F299,
http://opendatacommunities.org/id/london-borough-council/sutton,London Borough of Sutton,10/09/2019,1279574,(20.99),CURRYS,26/06/2018 refund from currys,Chief Executive's Directorate,Travelling and Subsistence Allowances,A530,
